Cogmind - Beta 13 @@@ ROGUE MODE // 2024.04.07 @ 14:16:57 Player: Varatnar Result: Self-destructed Performance ------------- Evolutions (3) 1500 Regions Visited (5) 1000 Robots Destroyed (88) 440 Value Destroyed (1939) 1939 Prototype IDs (11) 220 Alien Tech Used (0) 0 Bonus (651) 651 TOTAL SCORE: 5750 Bonus ------- High Alert Combat Kills 151 Entered DSFs 500 Cogmind --------- Core Integrity 507/700 Matter 140/300 Energy 87/290 System Corruption 0% Temperature Cool (6) Movement Hovering (310) Ox4 Location -7/DSF Parts ------- > --- POWER (1) -------- Improved Deuterium Engine > --- PROPULSION (5) --- Armored Huge Wheel Gravmag System > --- UTILITY (5) ------ Large Storage Unit Hardlight Generator Hacking Suite System Shield > --- WEAPON (2) ------- Great Maul > --- INVENTORY (15) --- Improved Ion Engine Compact Wheel Compact Wheel Aerolev Unit Aerolev Unit Cooling System Small Storage Unit Signal Interpreter Improved Terrain Scanner Terrain Scan Processor Improved Light Armor Plating Reactive Plating Enhanced Autogun Peak State ------------ > --- POWER ------------ Enhanced Nuclear Core > --- PROPULSION ------- Aerolev Unit Aerolev Unit Gravmag System Gravmag System Gravmag System > --- UTILITY ---------- Large Storage Unit Reaction Control System Hardlight Generator Hacking Suite System Shield > --- WEAPON ----------- Rocket Launcher Great Maul > --- INVENTORY -------- Improved Ion Engine Improved Ion Engine Armored Huge Wheel Aerolev Unit Aerolev Unit Cooling System Small Storage Unit Signal Interpreter Improved Terrain Scanner Terrain Scan Processor Improved Light Armor Plating Reactive Plating Enhanced Autogun Grenade Launcher [Rating: 47] Favorites ----------- Power Light Ion Engine Engine Light Ion Engine Power Core Enhanced Nuclear Core Propulsion Wheel Leg VSS Leg Wheel Wheel Hover Unit Gravmag System Flight Unit Flight Unit Utility Large Storage Unit Device Heat Sink Storage Large Storage Unit Hackware Hacking Suite Protection Light Armor Plating Weapon Particle Cannon Energy Cannon Particle Cannon Ballistic Gun Assault Rifle Launcher Rocket Launcher Impact Weapon Great Maul Slashing Weapon Mining Claw Build | -11 -10 -9 -8 -7 -7 ------- Run | Yrd Mat Mat Mat Fac DSF Slots Evolved 6 | . . 2 2 2 . Power . | . . . . . . Propulsion 3 | . . 1 1 1 . Utility 3 | . . 1 1 1 . Weapon . | . . . . . . Parts Attached 116 | 5 24 37 33 10 7 Power 11 | . 4 4 1 1 1 Engine 10 | . 4 4 1 . 1 Core 1 | . . . . 1 . Reactor . | . . . . . . Propulsion 36 | 2 6 7 14 2 5 Treads . | . . . . . . Leg 1 | . . . 1 . . Wheel 22 | 2 4 7 5 . 4 Hover 11 | . . . 8 2 1 Flight 2 | . 2 . . . . Utility 24 | 1 7 8 5 3 . Device 12 | . 6 3 1 2 . Storage 3 | 1 1 . 1 . . Processor . | . . . . . . Hackware 2 | . . . 2 . . Protection 7 | . . 5 1 1 . Artifact . | . . . . . . Weapon 45 | 2 7 18 13 4 1 Energy Gun . | . . . . . . Energy Cannon 13 | . 5 7 1 . . Ballistic Gun 11 | 2 2 3 4 . . Ballistic Cannon . | . . . . . . Launcher 13 | . . 4 4 4 1 Special Weapon . | . . . . . . Impact Weapon 1 | . . . 1 . . Slashing Weapon 7 | . . 4 3 . . Piercing Weapon . | . . . . . . Special Melee Weapon . | . . . . . . Unidentified Prototypes 5 | . . 3 1 1 . Parts Lost 18 | . . 7 5 . 6 Power . | . . . . . . Propulsion 11 | . . 5 3 . 3 Utility 4 | . . 2 1 . 1 Weapon 3 | . . . 1 . 2 Highest Loss Streak 5 | . . 4 4 . 5 To Critical Strikes . | . . . . . . Average Slot Usage (%) 94 | . 94 95 94 97 75 Engine 10 | . 12 11 9 . 2 Wheel 23 | . 22 30 20 . 15 Hover 5 | . . . 12 38 5 Flight 1 | . 5 . . . . Device 8 | . 12 8 4 13 11 Storage 10 | . 14 11 9 7 7 Hackware 5 | . . . 14 15 15 Protection 6 | . . 12 5 . . Energy Cannon 11 | . 17 14 6 . . Ballistic Gun 3 | . 7 2 2 1 . Launcher 1 | . . . 3 4 4 Impact Weapon 1 | . . . 3 7 7 Slashing Weapon 1 | . . 4 1 . . Naked Turns . | . . . . . . Heaviest Build 46 | 9 32 42 46 42 42 Greatest Support 72 | 20 20 36 40 44 72 Greatest Overweight (x) 5 | . 3 3 5 . 1 Average Overweight (x) . | . . 1 . . . Largest Inventory Capacity 15 | 8 15 15 15 15 15 Average Capacity 13 | 6 11 15 15 15 15 Most Carried 15 | 3 15 15 15 15 15 Average Carried 12 | 2 9 14 14 13 12 Final Capacity 15 | 8 15 15 15 15 15 Final Carried 15 | 3 15 15 14 14 13 Class Distribution -------------------- 50% | Mutant 29% | Scavenger-Mutant 20% | Hacker-Mutant Dominant Class ---------------- Mutant | -10/Materials Mutant | -9/Materials Scavenger-Mutant | -8/Materials Hacker-Mutant | -7/Factory Hacker-Mutant | -7/DSF Resources | -11 -10 -9 -8 -7 -7 ----------- Run | Yrd Mat Mat Mat Fac DSF Matter Collected 1833 | 193 242 481 829 85 3 Remotely . | . . . . . . Salvage Created 2323 | . 418 722 1032 85 66 Parts 161 | . 39 51 68 2 1 Haulers Intercepted 2 | . . . 1 1 . Recyclers Shooed . | . . . . . . Parts Field Recycled . | . . . . . . Retrieved Matter . | . . . . . . Parts Self-Destructed . | . . . . . . Prevented . | . . . . . . Kills | -11 -10 -9 -8 -7 -7 ------- Run | Yrd Mat Mat Mat Fac DSF Combat Hostiles Destroyed 43 | . 7 13 23 . . Guns 3 | . 3 . . . . Cannons 18 | . 4 8 6 . . AOE 22 | . . 5 17 . . Classes Destroyed 11 | . 7 3 1 . . Worker 8 | . 2 3 3 . . Builder 17 | . 4 6 6 1 . Tunneler 2 | . 1 1 . . . Hauler 2 | . . . 1 1 . Recycler 5 | . 1 2 2 . . Operator 3 | . . 1 2 . . Watcher 8 | . 2 2 3 1 . Swarmer 11 | . 5 3 3 . . Grunt 23 | . 2 5 16 . . Brawler 2 | . . 1 1 . . Sentry 7 | . . 4 3 . . Best Kill Streak 8 | . 4 8 7 2 . Combat Bots Only 5 | . 3 4 5 . . Max Kills in Single Turn 3 | . 1 3 2 1 . Gunslinging . | . . . . . . Exploded 2 | . . 2 2 . . Melee . | . . . . . . Uniques/NPCs Destroyed . | . . . . . . Combat | -11 -10 -9 -8 -7 -7 -------- Run | Yrd Mat Mat Mat Fac DSF Hostile Shots Fired 271 | . 26 68 103 . 74 Missed 108 | . 8 21 42 . 37 Damage Taken 2714 | . 156 868 809 . 881 Core 537 | . 19 202 123 . 193 Absorbed by Shields 132 | . . . . . 132 Redirected to Shielding 8 | . . 8 . . . Ignored by Resistances 6 | . . . 6 . . Regen/Repaired (Parts) 157 | . 22 79 . 56 . Core Remaining (%) 79 | 100 92 49 77 . . Volleys Fired 122 | . 33 32 50 . 7 Largest 2 | . 2 2 2 . 1 Hottest 136 | . 136 136 136 . 33 Shots Fired 210 | . 65 66 72 . 7 Gun 24 | . 12 7 5 . . Cannon 132 | . 53 46 33 . . Launcher 54 | . . 13 34 . 7 Special . | . . . . . . Kinetic 24 | . 12 7 5 . . Thermal 132 | . 53 46 33 . . Explosive 54 | . . 13 34 . 7 Electromagnetic . | . . . . . . Robot Hit Streak 10 | . 9 6 9 . 10 Robot Miss Streak 7 | . 4 6 7 . 1 Penetration Max . | . . . . . . Secondary Targets 2 | . 2 . . . . Max Gunslinging Chain 1 | . 1 . . . . Shots Hit Robots 137 | . 32 42 55 3 5 Core Hits 113 | . 18 37 53 . 5 Critical Kills 1 | . . . 1 . . Critical Parts Destroyed . | . . . . . . Critical Strikes 1 | . . . 1 . . Smash 1 | . . . 1 . . Melee Attacks 69 | . . 28 33 7 1 Impact 30 | . . . 22 7 1 Slashing 39 | . . 28 11 . . Piercing . | . . . . . . Sneak Attacks 25 | . . 10 13 2 . Combat Hostiles . | . . . . . . Follow-up Attacks . | . . . . . . Damage Inflicted 6160 | . 709 1675 3229 244 303 Guns 155 | . 90 17 48 . . Cannons 1540 | . 613 516 411 . . Explosions 2753 | . . 745 1705 . 303 Melee 1706 | . . 397 1065 244 . Ramming 6 | . 6 . . . . Kinetic 155 | . 90 17 48 . . Thermal 1540 | . 613 516 411 . . Explosive 2734 | . . 745 1686 . 303 Electromagnetic 19 | . . . 19 . . Impact 1015 | . . . 771 244 . Slashing 691 | . . 397 294 . . Piercing . | . . . . . . Highest Corruption 12 | . . 12 . . . Average Corruption 11 | . . 11 . . . Corruption Purged . | . . . . . . Corruption Blocked . | . . . . . . Effects 34 | . . 34 . . . Message Errors 10 | . . 10 . . . Matter Fused 7 | . . 7 . . . Heat Flow Errors 5 | . . 5 . . . Energy Discharges 4 | . . 4 . . . Data Loss (minor) 3 | . . 3 . . . Data Loss (major) 1 | . . 1 . . . Misfires 3 | . . 3 . . . Alerts 1 | . . 1 . . . Overload Shots . | . . . . . . Overflow Damage 607 | . 1 111 373 122 . Projectiles 14 | . 1 13 . . . Explosions 47 | . . 11 36 . . Melee 546 | . . 87 337 122 . Knockbacks 1 | . . . . 1 . Impact 1 | . . . . 1 . Kinetic . | . . . . . . Secondary . | . . . . . . Self-Inflicted Damage 90 | . 3 . 48 . 39 Shots 3 | . . . 2 . 1 Rammed 2 | . 2 . . . . Targets Rammed 2 | . 2 . . . . Kicked . | . . . . . . Crushed . | . . . . . . Highest Temperature 452 | . 275 195 452 . . Average Temperature 96 | . 91 55 164 . . Received Heat Transfer 547 | . 36 153 288 . 70 Effects 9 | . . . 9 . . Shutdowns 1 | . . . 1 . . Energy Bleed 2 | . . . 2 . . Matter Decay 1 | . . . 1 . . Damage (minor) 2 | . . . 2 . . Damage (major) 3 | . . . 3 . . Siege Activations . | . . . . . . Robots Corrupted . | . . . . . . Combat Hostiles . | . . . . . . Parts Fried 9 | . . . 6 3 . Impact Corruptions 9 | . . . 5 4 . Robots Melted . | . . . . . . Combat Hostiles . | . . . . . . Parts Melted 3 | . 2 . 1 . . Heat Transferred 2775 | . 1110 925 740 . . Parts Sabotaged . | . . . . . . Parts Stolen . | . . . . . . Parts Stripped . | . . . . . . Power Chain Reactions . | . . . . . . Alert | -11 -10 -9 -8 -7 -7 ------- Run | Yrd Mat Mat Mat Fac DSF Peak Influence 813 | . 185 360 813 223 198 Initial 156 | . . 24 55 140 156 Average 219 | . 78 158 485 198 162 Maximum Alert Level 3 | . . 1 3 1 . Low Security (%) 63 | 100 100 66 16 35 100 Level 1 20 | . . 33 21 64 . Level 2 10 | . . . 40 . . Level 3 5 | . . . 21 . . Level 4 . | . . . . . . Level 5 . | . . . . . . High Security . | . . . . . . Max Security . | . . . . . . Squads Dispatched 9 | . . 3 3 1 2 Investigation 1 | . . 1 . . . Extermination . | . . . . . . Reinforcement 7 | . . 2 2 1 2 Assault 1 | . . . 1 . . Garrison . | . . . . . . Intercept . | . . . . . . Searches Triggered . | . . . . . . Construction Impeded 1 | . . . . 1 . Haulers Reinforced . | . . . . . . Active Scanning Responses . | . . . . . . Cargo Convoy Interrupts . | . . . . . . Stealth | -11 -10 -9 -8 -7 -7 --------- Run | Yrd Mat Mat Mat Fac DSF Distress Signals 4 | . 1 . 3 . . Communications Jammed . | . . . . . . Distress Signals . | . . . . . . Times Spotted 89 | . 15 25 40 1 8 Peak Tracking Total 9 | . 4 6 7 1 9 Tactical Retreats 9 | . . 3 4 . 2 Traps | -11 -10 -9 -8 -7 -7 ------- Run | Yrd Mat Mat Mat Fac DSF Traps Triggered 6 | . 4 1 . . 1 Indirectly . | . . . . . . Trap Hack Attempts . | . . . . . . Triggered . | . . . . . . Disarmed 6 | . . . 6 . . Reprogrammed . | . . . . . . Reused . | . . . . . . Traps Extracted . | . . . . . . Installed . | . . . . . . Triggered . | . . . . . . Machines | -11 -10 -9 -8 -7 -7 ---------- Run | Yrd Mat Mat Mat Fac DSF Machines Disabled 7 | . . 2 5 . . Max in Single Turn 2 | . . 1 2 . . Machines Repaired . | . . . . . . Machines Dismantled . | . . . . . . Machines Sabotaged . | . . . . . . Overloaded Fab Kills . | . . . . . . Hacking | -11 -10 -9 -8 -7 -7 --------- Run | Yrd Mat Mat Mat Fac DSF Machines Accessed 21 | . 9 5 3 4 . Terminals 14 | . 7 3 3 1 . Fabricators . | . . . . . . Repair Stations 5 | . 1 1 . 3 . Recycling Units 2 | . 1 1 . . . Scanalyzers . | . . . . . . Garrison Access . | . . . . . . Total Hacks 57 | . 21 12 15 9 . Successful 34 | . 10 7 12 5 . Failed 23 | . 11 5 3 4 . Catastrophic 5 | . 2 1 . 2 . Database Lockouts . | . . . . . . Manual 9 | . 2 5 2 . . Terminals 40 | . 15 9 15 1 . Fabricators . | . . . . . . Repair Stations 14 | . 4 2 . 8 . Recycling Units 3 | . 2 1 . . . Scanalyzers . | . . . . . . Garrison Access . | . . . . . . Terminal Hacks 24 | . 7 4 12 1 . Record 1 | . . 1 . . . Robot Analysis 2 | . 2 . . . . Prototype ID Bank 3 | . 1 . 2 . . Open DSF 1 | . . . . 1 . Branch Access Points 1 | . . . 1 . . Terminal Index 1 | . 1 . . . . Recycling Unit Index 1 | . 1 . . . . Scanalyzer Index 1 | . . . 1 . . Alert Level 3 | . . . 3 . . Unreport Threat 3 | . . . 3 . . Locate Traps 3 | . 1 1 1 . . Disarm Traps 1 | . . . 1 . . Maintenance Status 1 | . 1 . . . . Reinforcement Status 1 | . . 1 . . . Zone Layout 1 | . . 1 . . . Fabricator Hacks . | . . . . . . Repair Station Hacks 8 | . 2 2 . 4 . Scan Component 5 | . 1 1 . 3 . Repair 3 | . 1 1 . 1 . Recycling Unit Hacks 2 | . 1 1 . . . Process 1 | . 1 . . . . Retrieve Components 1 | . . 1 . . . Scanalyzer . | . . . . . . Garrison Access Hacks . | . . . . . . Unauthorized Hacks . | . . . . . . Terminals . | . . . . . . Fabricators . | . . . . . . Repair Stations . | . . . . . . Recycling Units . | . . . . . . Scanalyzers . | . . . . . . Garrison Access . | . . . . . . Data Cores Recovered . | . . . . . . Used . | . . . . . . Hacking Detections 18 | . 9 3 3 3 . Full Trace Events 3 | . 2 1 . . . Feedback Events 1 | . . 1 . . . Corruption 1 | . . 1 . . . Feedback Blocked . | . . . . . . Robot Schematics Acquired . | . . . . . . Robots Built . | . . . . . . Authchips . | . . . . . . Time . | . . . . . . Total Robot Build Rating . | . . . . . . Part Schematics Acquired . | . . . . . . Parts Built . | . . . . . . Authchips . | . . . . . . Time . | . . . . . . Total Part Build Rating . | . . . . . . Parts Repaired 3 | . 1 1 . 1 . Time 74 | . 26 32 . 16 . Parts Recycled . | . . . . . . Recycled Matter 16 | . 16 . . . . Retrieved Matter . | . . . . . . Retrieved Components 8 | . . 8 . . . Parts Scanalyzed . | . . . . . . Part Schematics Acquired . | . . . . . . Parts Damaged . | . . . . . . Bothacking | -11 -10 -9 -8 -7 -7 ------------ Run | Yrd Mat Mat Mat Fac DSF Used RIF Installer . | . . . . . . Robots Hacked . | . . . . . . Non-combat . | . . . . . . Combat . | . . . . . . Robot Hacks Applied . | . . . . . . Relay Couplers Released . | . . . . . . Fabnet Peak Effective % . | . . . . . . Robots Rewired . | . . . . . . Allies Hacked . | . . . . . . Hacks Repelled . | . . . . . . Allies | -11 -10 -9 -8 -7 -7 -------- Run | Yrd Mat Mat Mat Fac DSF Total Allies . | . . . . . . Largest Group . | . . . . . . Highest-Rated Group . | . . . . . . Highest-Rated Ally . | . . . . . . Total Orders . | . . . . . . Ally Attacks . | . . . . . . Total Damage . | . . . . . . Kills . | . . . . . . Allies Corrupted . | . . . . . . Allies Melted . | . . . . . . Intel | -11 -10 -9 -8 -7 -7 ------- Run | Yrd Mat Mat Mat Fac DSF Robot Analysis Total 2 | . 2 . . . . Derelict Logs Recovered . | . . . . . . Drone Launches . | . . . . . . Drone Recoveries . | . . . . . . Exploration | -11 -10 -9 -8 -7 -7 ------------- Run | Yrd Mat Mat Mat Fac DSF Turns Passed 3463 | 57 953 1245 884 177 147 Spaces Moved 3144 | 57 919 979 815 277 97 Core 4 | 4 . . . . . Treads . | . . . . . . Legs . | . . . . . . Wheels 2171 | 53 649 979 399 . 91 Hover 699 | . . . 416 277 6 Flight 270 | . 270 . . . . Fastest Speed 37 | 50 37 95 38 40 40 Average Speed 79 | 77 81 95 67 40 100 Slowest Speed 350 | 80 125 125 350 42 115 Overloaded Moves . | . . . . . . Propulsion Burnouts . | . . . . . . Robots Hopped . | . . . . . . Cave-ins Triggered 1 | . . 1 . . . Exploration Rate (%) 40 | 3 84 49 45 4 55 Regions Visited 5 Branch Regions . Pre-discovered Areas . | . . . . . . Known Exits Taken 1 | . . . . 1 . Unknown Exits Taken 4 | 1 1 1 1 . . Scrap Searched . | . . . . . . Spaces Dug 31 | . . 16 10 4 1 Terrain Destroyed 308 | . . 75 212 4 17 Melee 31 | . . 16 10 4 1 Projectile . | . . . . . . AOE 277 | . . 59 202 . 16 Terrain Rammed . | . . . . . . Walls Destroyed . | . . . . . . Machines Disabled . | . . . . . . Actions | -11 -10 -9 -8 -7 -7 --------- Run | Yrd Mat Mat Mat Fac DSF Total 3764 | 66 1062 1161 1011 325 139 Wait 178 | 2 44 61 47 21 3 Move 3139 | 56 918 978 814 276 97 Hop . | . . . . . . Pick Up 60 | 3 25 14 8 6 4 Fast Attach 38 | 5 8 5 15 1 4 Attach 23 | . 6 7 4 3 3 Detach 14 | . 4 1 8 1 . Swap 55 | . 10 25 14 6 . Drop 51 | . 12 10 18 4 7 Fire 122 | . 33 32 50 . 7 Melee 69 | . . 28 33 7 1 Ram 2 | . 2 . . . . Kick . | . . . . . . Crush . | . . . . . . Escape Stasis 13 | . . . . . 13 Rewire . | . . . . . . Trap . | . . . . . . Miscellaneous . | . . . . . . Route ------- -11/Scrapyard -10/Materials (discovered 4 exits: *Mat x3 / [*Min]) -9/Materials (discovered 2 exits: *Mat / [*Min]) -8/Materials -7/Factory -7/DSF History --------- Turn | Location | Event 19 | -11/Scrapyard | Discovered new exit (range 16) 58 | -11/Scrapyard | Entered Materials 240 | -10/Materials | Discovered new exit (range 16) 311 | -10/Materials | Build established: Mutant 436 | -10/Materials | Discovered new exit (range 14) 489 | -10/Materials | Discovered new exit (range 16) 619 | -10/Materials | Repaired Lgt. Ion Engine 900 | -10/Materials | Discovered new exit (range 15) 1011 | -10/Materials | Entered another Materials area 1011 | -9/Materials | Evolved 2 slots: Propulsion x1, Utility x1 1407 | -9/Materials | Crushed by falling debris 1407 | -9/Materials | System corruption reached 10% 1438 | -9/Materials | Lost 4 parts (2n2u) 1718 | -9/Materials | Lost 3 parts (3n) 1935 | -9/Materials | Discovered new exit (range 16) 1978 | -9/Materials | Repaired Particle Cannon 1989 | -9/Materials | Core integrity fell below 50% 2245 | -9/Materials | Discovered new exit (range 6) 2256 | -9/Materials | Entered another Materials area 2256 | -8/Materials | Evolved 2 slots: Propulsion x1, Utility x1 2299 | -8/Materials | Build established: Scavenger-Mutant 2718 | -8/Materials | Lost 4 parts (2n1u1w) 2870 | -8/Materials | Discovered new exit (range 15) 3056 | -8/Materials | First assault squad dispatched 3116 | -8/Materials | Build established: Hacker-Mutant 3140 | -8/Materials | Entered Factory 3140 | -7/Factory | Evolved 2 slots: Propulsion x1, Utility x1 3167 | -7/Factory | Repaired Rocket Launcher 3316 | -7/Factory | Identified exit to DSF 3317 | -7/Factory | Entered DSF 3364 | -7/DSF | Additional patrols routed to DSF 3456 | -7/DSF | Lost 5 parts (2n1u2w) 3464 | -7/DSF | Self-destructed Last Messages --------------- 03401_ Rocket Launcher destroyed. 03401_ Enh. Nuclear Core blasted off. 03405_ Grenade Launcher destroyed. 03405_ Knocked back. 03406_ Acquired 3 matter. 03408_ Knocked back. 03411_ Com. Wheel destroyed. 03411_ Critical hit (Blast). 03425_ Arm. Huge Wheel destroyed. 03428_ X-67 Chaingunner springs to life. 03429_ Matter Repository disabled. 03444_ C-30 ARC bursts open, deploying its payload. 03444_ L-41 Fighter unfolds itself. 03444_ G-47 Trooper unfolds itself. 03452_ Acquired Com. Wheel. 03458_ Critical hit (Burn: +27). 03460_ Acquired Gravmag System. 03462_ Com. Wheel destroyed. [Achievement: 5k Club] Map ----- +----------------------------------------------------+ | | | | | | | | | | | | | | | | | | | | | | | | | | | | | | | ??????????????????????????????????????????? | | ??????????????????????????????????????????? | | ??????????????????????????????????????????? | | ???????????????????????????????##?????????? | | ??""??????????????????????????#""?????????? | | ??#"#???????????###???????????#"#?????????? | | ###"##???????####"####???????##"####??????? | | """""######### ** !!#########"""""#??????? | | """""## #!!!# ***!!# # =##"""""#??????? | | "" g x% === ""#??????? | | "%% ^ H x g @= ^ """""????? | | "" ## #!!!###a ###g l# ##x ""###????? | | ## ### #!!!#?# #?# =# ### ###??????? | | ## ####"##### ########?# #????????? | | # !!####???# " #???????? #???????? | | # !!#??????# "%" #???????? #???????? | | ## ###??????###" ###???????## ##???????? | | #! !!#????????! !?????????? ????????? | | #! !!#???????!! !!????????? ????????? | | #! !!#???????!! !!????????? ????????? | | ## ######??#### ###????????# ##???????? | | ## #? # #??????????# !????????? | | # # ??????????? !????????? | | % % ??????????? [????????? | | % ??????????? [????????? | | * ??????????????????????? | | [[[# ???????????????????????? | | ##[[[#? # ????????????????????????? | | # ##?####???#????????????????????????????? | | ####??????????????????????????????????????? | | ??????????????????????????????????????????? | | ??????????????????????????????????????????? | | ??????????????????????????????????????????? | | ??????????????????????????????????????????? | | ??????????????????????????????????????????? | +----------------------------------------------------+ Best States ------------- Heat Dissipation 38 Energy Generation 17 Energy Capacity 300 Matter Stores 300 Matter Capacity 300 Sight Range 16 Robot Scan Range 14 Terrain Scan Range 16 Terrain Scan Density 10 Armor Coverage 150 Resistance: KI 20 Weapon Shielding 33 Evasion (%) 65 Offensive Hacking 10 Defensive Hacking 10 Item Schematics ----------------- None Robot Schematics ------------------ None Fabricated ------------ Nothing Alien Tech Used ----------------- None Achievements -------------- 5k Club Everything Is Under Control Made in Tau Ceti IV Part-time Excavator Part-time Mechanic Remodeling Unlikely Earthworm Challenges ------------ None Game ------ Seed GodDirtyProjector Manual? 0 Play Time 02:18:51 Cumulative 4.1 hours Start 2024.04.06 @ 17:09:29 End 2024.04.07 @ 14:16:57 Sessions 3 Manual Loads 0 Difficulty Rogue Special Mode None Game No. 3 Rogue 3 Adventurer 0 Explorer 0 Win Type - Total 0 Types 0/0/0/0/0/0/0/0/0 Lore% 2 Gallery% 5 Achievement% 7 Wizard Run 0 Options --------- Layout 1 ASCII 0 Keyboard 1 Movement Numpad Keybinds 0 Fullscreen 1 Font 24/Smallcaps Map View 50x35 Zoom Use 0% Tactical HUD 1 Map Filters NONE Filters NONE Steam 1 RUN: d4fd418e-e7b5-481b-b6d8-1b2213d5202b